Cogmind - Beta 17 @@@ ROGUE MODE // 2026.07.21 @ 12:32:17 Player: Stainfree Result: Destroyed by S-10 Pest with Light Assault Rifle Performance ------------- Evolutions (0) 0 Regions Visited (3) 600 Robots Destroyed (22) 110 Value Destroyed (592) 592 Prototype IDs (0) 0 Alien Tech Used (0) 0 Bonus (0) 0 TOTAL SCORE: 1302 Bonus ------- None Cogmind --------- Core Integrity 0/250 Matter 280/300 Energy 87/100 System Corruption 0% Temperature Cool (0) Movement Core (50) Location -10/Subcaves Parts ------- > --- POWER (1) -------- (None) > --- PROPULSION (2) --- (None) > --- UTILITY (2) ------ (None) > --- WEAPON (2) ------- Medium Laser > --- INVENTORY (5) ---- Hacking Suite Bore Cannon Grenade Launcher Mining Laser Peak State ------------ > --- POWER ------------ Light Ion Engine > --- PROPULSION ------- Light Treads Light Treads > --- UTILITY ---------- Improved Heat Sink Medium Storage Unit > --- WEAPON ----------- Small Laser Particle Gun > --- INVENTORY -------- Light Ion Engine Light Treads Wheel Hacking Suite Assault Rifle Assault Rifle Grenade Launcher Mining Laser [Rating: 11] Favorites ----------- Power Light Ion Engine Engine Light Ion Engine Propulsion Light Treads Treads Light Treads Wheel Wheel Utility Improved Heat Sink Device Improved Heat Sink Storage Medium Storage Unit Processor Signal Interpreter Weapon Small Laser Energy Gun Small Laser Ballistic Gun Light Assault Rifle Launcher Grenade Launcher Build | -11 -10 -10 -10 ------- Run | Yrd Mat Min Sub Slots Evolved . | . . . . Power . | . . . . Propulsion . | . . . . Utility . | . . . . Weapon . | . . . . Parts Attached 19 | 7 11 . 1 Power 4 | 1 3 . . Engine 4 | 1 3 . . Core . | . . . . Reactor . | . . . . Propulsion 4 | 3 1 . . Treads 3 | 2 1 . . Leg . | . . . . Wheel 1 | 1 . . . Hover . | . . . . Flight . | . . . . Utility 4 | 1 3 . . Device 1 | . 1 . . Storage 2 | 1 1 . . Processor 1 | . 1 . . Hackware . | . . . . Protection . | . . . . Artifact . | . . . . Weapon 7 | 2 4 . 1 Energy Gun 4 | . 3 . 1 Energy Cannon . | . . . . Ballistic Gun 2 | 2 . . . Ballistic Cannon . | . . . . Launcher 1 | . 1 . . Special Weapon . | . . . . Impact Weapon . | . . . . Slashing Weapon . | . . . . Piercing Weapon . | . . . . Special Melee Weapon . | . . . . Unidentified Prototypes . | . . . . Parts Lost 5 | . 1 . 4 Power 1 | . . . 1 Propulsion 2 | . 1 . 1 Utility . | . . . . Weapon 2 | . . . 2 Highest Loss Streak 2 | . 1 . 2 To Critical Strikes . | . . . . Average Backups 7 | 2 5 9 7 Power . | . . 1 . Propulsion 1 | 1 1 1 . Utility 1 | . . 2 1 Weapon 4 | 1 3 5 5 Tool/Special . | . . . . Unused Backups 6 | . . . 6 Power . | . . . . Propulsion . | . . . . Utility 2 | . . . 2 Weapon 4 | . . . 4 Tool/Special . | . . . . Average Slot Usage (%) 93 | . 95 100 46 Engine 13 | . 13 14 9 Treads 26 | . 27 28 10 Device 10 | . 8 14 7 Storage 13 | . 13 14 7 Processor 1 | . 1 . . Energy Gun 20 | . 17 28 7 Ballistic Gun 4 | . 8 . . Launcher 1 | . 1 . . Peak Build Rating 11 | 6 11 11 11 Average Rating 9 | 4 8 11 5 On Entrance 7 | . 6 11 11 Avg Prop Armor Cover (%) . | . . . . Naked Turns 38 | . . . 38 Heaviest Build 20 | 10 20 20 20 Greatest Support 40 | 40 40 40 40 Greatest Overweight (x) 1 | . . . 1 Average Overweight (x) . | . . . . Largest Inventory Capacity 10 | 8 10 10 10 Average Capacity 9 | 7 9 10 7 Most Carried 10 | 5 10 10 10 Average Carried 7 | 2 5 9 7 Final Capacity 10 | 8 10 10 5 Final Carried 10 | 2 9 10 4 Class Distribution -------------------- 72% | Scavenger-Mutant 27% | Mutant Dominant Class ---------------- Scavenger-Mutant | -10/Materials Scavenger-Mutant | -10/Mines Mutant | -10/Subcaves Resources | -11 -10 -10 -10 ----------- Run | Yrd Mat Min Sub Matter Collected 691 | 211 423 57 . Remotely . | . . . . Salvage Created 625 | . 625 . . Parts 33 | . 33 . . Haulers Intercepted 1 | . 1 . . Recyclers Shooed 2 | . 2 . . Parts Field Recycled . | . . . . Retrieved Matter . | . . . . Parts Self-Destructed . | . . . . Prevented . | . . . . Parts Restored . | . . . . Kills | -11 -10 -10 -10 ------- Run | Yrd Mat Min Sub Combat Hostiles Destroyed 16 | . 16 . . Guns 10 | . 10 . . AOE 5 | . 5 . . Classes Destroyed 6 | . 6 . . Builder 2 | . 2 . . Hauler 1 | . 1 . . Operator 1 | . 1 . . Watcher 2 | . 2 . . Swarmer 2 | . 2 . . Grunt 14 | . 14 . . Best Kill Streak 4 | . 4 . . Combat Bots Only 4 | . 4 . . Max Kills in Single Turn 2 | . 2 . . Gunslinging . | . . . . Exploded 2 | . 2 . . Melee . | . . . . Uniques/NPCs Destroyed . | . . . . Combat | -11 -10 -10 -10 -------- Run | Yrd Mat Min Sub Hostile Shots Fired 127 | . 91 . 36 Missed 44 | . 27 . 17 Hits 83 | . 64 . 19 Projectile 83 | . 64 . 19 Damage Taken 1045 | . 686 . 359 Core 250 | . 111 . 139 Absorbed by Shields . | . . . . Core Remaining (%) 100 | 100 . . . Volleys Fired 62 | . 62 . . Largest 2 | . 2 . . Hottest 105 | . 105 . . Shots Fired 119 | . 119 . . Gun 111 | . 111 . . Cannon . | . . . . Launcher 8 | . 8 . . Special . | . . . . Kinetic 45 | . 45 . . Thermal 66 | . 66 . . Explosive 8 | . 8 . . Electromagnetic . | . . . . Robot Hit Streak 16 | . 16 . . Robot Miss Streak 4 | . 4 . . Penetration Max . | . . . . Secondary Targets 3 | . 3 . . Max Gunslinging Chain 1 | . 1 . . Shots Hit Robots 83 | . 83 . . Core Hits 41 | . 41 . . Critical Kills . | . . . . Critical Parts Destroyed . | . . . . Critical Strikes 2 | . 2 . . Burn 2 | . 2 . . Melee Attacks . | . . . . Impact . | . . . . Slashing . | . . . . Piercing . | . . . . Sneak Attacks . | . . . . Combat Hostiles . | . . . . Follow-up Attacks . | . . . . Damage Inflicted 1481 | . 1481 . . Guns 852 | . 852 . . Cannons . | . . . . Explosions 624 | . 624 . . Melee . | . . . . Ramming 5 | . 5 . . Kinetic 246 | . 246 . . Thermal 606 | . 606 . . Explosive 624 | . 624 . . Electromagnetic . | . . . . Impact . | . . . . Slashing . | . . . . Piercing . | . . . . Highest Corruption . | . . . . Average Corruption . | . . . . Corruption Purged . | . . . . Corruption Blocked . | . . . . Overload Shots . | . . . . Overflow Damage 8 | . 8 . . Projectiles . | . . . . Explosions 8 | . 8 . . Melee . | . . . . Knockbacks . | . . . . Impact . | . . . . Kinetic . | . . . . Secondary . | . . . . Self-Inflicted Damage . | . . . . Shots . | . . . . Rammed 1 | . 1 . . Targets Rammed 1 | . 1 . . Kicked . | . . . . Crushed . | . . . . Highest Temperature 142 | . 142 . . Average Temperature 32 | . 32 . . Received Heat Transfer 396 | . 312 . 84 Siege Activations . | . . . . Martial Activations . | . . . . Shielding Activations . | . . . . Robots Disrupted . | . . . . Combat Hostiles . | . . . . Robots Corrupted . | . . . . Combat Hostiles . | . . . . Parts Fried . | . . . . Impact Corruptions . | . . . . Robots Melted 1 | . 1 . . Combat Hostiles 1 | . 1 . . Parts Melted 3 | . 3 . . Heat Transferred 1576 | . 1576 . . Parts Sabotaged . | . . . . Parts Stolen . | . . . . Parts Stripped . | . . . . Power Chain Reactions . | . . . . Alert | -11 -10 -10 -10 ------- Run | Yrd Mat Min Sub Maximum Alert Level . | . . . . Low Security (%) 100 | 100 100 100 . Level 1 . | . . . . Level 2 . | . . . . Level 3 . | . . . . Level 4 . | . . . . Level 5 . | . . . . High Security . | . . . . Max Security . | . . . . Peak Influence 181 | . 181 48 . Initial 48 | . . 48 . Average 68 | . 111 4 . Influence Increases 502 | . 487 . 15 Destroy 0b10 Robot/C 320 | . 320 . . Destroy 0b10 Robot/NC 30 | . 30 . . Destroy Leader 76 | . 76 . . Successful Hack 13 | . 13 . . Disable Machine 15 | . 15 . . Destroy Structure 33 | . 33 . . Lose Combat Pursuer 15 | . . . 15 Influence Decreases 487 | . 361 126 . Entered New Map 78 | . . 78 . Time Decay 399 | . 351 48 . Lost Part 10 | . 10 . . Squads Dispatched 5 | . 5 . . Investigation 2 | . 2 . . Extermination . | . . . . Reinforcement 3 | . 3 . . Assault . | . . . . Garrison . | . . . . Intercept . | . . . . Searches Triggered . | . . . . Construction Impeded . | . . . . Haulers Reinforced . | . . . . Active Scanning Responses . | . . . . Cargo Convoy Interrupts . | . . . . Stealth | -11 -10 -10 -10 --------- Run | Yrd Mat Min Sub Distress Signals . | . . . . Communications Jammed . | . . . . Distress Signals . | . . . . Times Spotted 37 | . 27 . 10 Peak Tracking Total 8 | . 4 . 8 Tactical Retreats 1 | . . . 1 Traps | -11 -10 -10 -10 ------- Run | Yrd Mat Min Sub Traps Triggered 3 | . 3 . . Indirectly . | . . . . Trap Hack Attempts . | . . . . Triggered . | . . . . Disarmed . | . . . . Reprogrammed . | . . . . Reused . | . . . . Traps Extracted . | . . . . Installed . | . . . . Triggered . | . . . . Machines | -11 -10 -10 -10 ---------- Run | Yrd Mat Min Sub Machines Disabled 1 | . 1 . . Max in Single Turn 1 | . 1 . . Machines Repaired . | . . . . Machines Dismantled . | . . . . Machines Sabotaged . | . . . . Overloaded Fab Kills . | . . . . Hacking | -11 -10 -10 -10 --------- Run | Yrd Mat Min Sub Machines Accessed 5 | . 5 . . Terminals 4 | . 4 . . Fabricators . | . . . . Repair Stations . | . . . . Recycling Units 1 | . 1 . . Scanalyzers . | . . . . Garrison Access . | . . . . Total Hacks 10 | . 10 . . Successful 7 | . 7 . . Failed 3 | . 3 . . Catastrophic 1 | . 1 . . Database Lockouts . | . . . . Manual 6 | . 6 . . Terminals 8 | . 8 . . Fabricators . | . . . . Repair Stations . | . . . . Recycling Units 2 | . 2 . . Scanalyzers . | . . . . Garrison Access . | . . . . Terminal Hacks 2 | . 2 . . Terminal Index 1 | . 1 . . Zone Layout 1 | . 1 . . Fabricator Hacks . | . . . . Repair Station Hacks . | . . . . Recycling Unit Hacks 2 | . 2 . . Report Inventory 1 | . 1 . . Retrieve Components 1 | . 1 . . Scanalyzer . | . . . . Garrison Access Hacks . | . . . . Unauthorized Hacks 3 | . 3 . . Terminals 3 | . 3 . . Botnet 3 | . 3 . . Fabricators . | . . . . Repair Stations . | . . . . Recycling Units . | . . . . Scanalyzers . | . . . . Garrison Access . | . . . . Data Cores Recovered . | . . . . Used . | . . . . Hacking Detections 4 | . 4 . . Full Trace Events . | . . . . Feedback Events . | . . . . Feedback Blocked . | . . . . Robot Schematics Acquired . | . . . . Robots Built . | . . . . Authchips . | . . . . Time . | . . . . Total Robot Build Rating . | . . . . Part Schematics Acquired . | . . . . Parts Built . | . . . . Authchips . | . . . . Time . | . . . . Total Part Build Rating . | . . . . Part Studies Acquired . | . . . . Parts Repaired . | . . . . Time . | . . . . Parts Recycled . | . . . . Recycled Matter . | . . . . Retrieved Matter . | . . . . Retrieved Components 7 | . 7 . . Parts Scanalyzed . | . . . . Part Schematics Acquired . | . . . . Parts Damaged . | . . . . Bothacking | -11 -10 -10 -10 ------------ Run | Yrd Mat Min Sub Used RIF Installer . | . . . . Robots Hacked . | . . . . Non-combat . | . . . . Combat . | . . . . Robot Hacks Applied . | . . . . Relay Couplers Released . | . . . . Fabnet Peak Effective % . | . . . . Robots Rewired . | . . . . Allies Hacked . | . . . . Hacks Repelled . | . . . . Allies | -11 -10 -10 -10 -------- Run | Yrd Mat Min Sub Total Allies . | . . . . Largest Group . | . . . . Highest-Rated Group . | . . . . Highest-Rated Ally . | . . . . Total Orders . | . . . . Ally Attacks . | . . . . Total Damage . | . . . . Kills . | . . . . Allies Corrupted . | . . . . Allies Melted . | . . . . Intel | -11 -10 -10 -10 ------- Run | Yrd Mat Min Sub Active Infowar (turns) . | . . . . Robot Analysis Total . | . . . . Derelict Logs Recovered 1 | . . . 1 Drone Launches . | . . . . Drone Recoveries . | . . . . Exploration | -11 -10 -10 -10 ------------- Run | Yrd Mat Min Sub Turns Passed 1829 | 57 1022 632 118 Spaces Moved 917 | 40 492 244 141 Core 115 | 16 . . 99 Treads 783 | 21 492 244 26 Legs . | . . . . Wheels 19 | 3 . . 16 Hover . | . . . . Flight . | . . . . Fastest Speed 50 | 50 160 160 50 Average Speed 144 | 110 160 160 75 Slowest Speed 160 | 160 160 160 160 Overloaded Moves . | . . . . Propulsion Burnouts . | . . . . Robots Hopped . | . . . . Potential Cave-ins . | . . . . Cave-ins Triggered . | . . . . Exploration Rate (%) 38 | 4 72 63 13 Regions Visited 3 Branch Regions 2 Pre-discovered Areas . | . . . . Known Exits Taken 1 | . 1 . . Unknown Exits Taken 2 | 1 . 1 . Scrap Searched 1 | . . 1 . Spaces Dug . | . . . . Terrain Destroyed 31 | . 31 . . Melee . | . . . . Projectile . | . . . . AOE 31 | . 31 . . Terrain Rammed . | . . . . Walls Destroyed . | . . . . Machines Disabled . | . . . . Actions | -11 -10 -10 -10 --------- Run | Yrd Mat Min Sub Total 1309 | 52 614 486 157 Wait 262 | . 16 242 4 Move 914 | 39 491 243 141 Hop . | . . . . Pick Up 24 | 5 18 1 . Fast Attach 3 | 3 . . . Attach 14 | 4 7 . 3 Detach 3 | 1 1 . 1 Swap 12 | . 12 . . Drop 14 | . 6 . 8 Fire 62 | . 62 . . Melee . | . . . . Ram . | . . . . Kick . | . . . . Crush 1 | . 1 . . Escape Stasis . | . . . . Rewire . | . . . . Trap . | . . . . Miscellaneous . | . . . . Route ------- -11/Scrapyard -10/Materials (discovered 3 exits: [*Mat] / *Min x2) -10/Mines (discovered 2 exits: [*Mat] / [*Sub]) -10/Subcaves (discovered 1 exit: [*Rec]) History --------- Turn | Location | Event 8 | -11/Scrapyard | Discovered new exit (range 15) 58 | -11/Scrapyard | Entered Materials 263 | -10/Materials | Discovered new exit (range 15) 311 | -10/Materials | Build established: Mutant 320 | -10/Materials | Identified exit to Mines 678 | -10/Materials | Discovered exit to Mines (range 5) 736 | -10/Materials | Build established: Scavenger-Mutant 979 | -10/Materials | Discovered new exit (range 7) 1080 | -10/Materials | Entered Mines 1107 | -10/Mines | Discovered new exit (range 9) 1200 | -10/Mines | A weapon hastily lodged in a ceiling crevice suddenly fell to the ground 1703 | -10/Mines | Discovered new exit (range 6) 1712 | -10/Mines | Entered Subcaves 1713 | -10/Subcaves | Approached by a straggling Scientist 1732 | -10/Subcaves | A Subdweller sparked back to life 1732 | -10/Subcaves | A Subdweller sparked back to life 1741 | -10/Subcaves | Core integrity fell below 50% 1788 | -10/Subcaves | Core integrity fell below 20% 1828 | -10/Subcaves | Discovered new exit (range 15) 1830 | -10/Subcaves | Destroyed by S-10 Pest with Light Assault Rifle Last Messages --------------- was talking about a shortcut back to the UFD." 01716_ H2-4XG(u) builds Twisted Machinery. 01732_ RC-KB6(R) creaks and sparks as it begins to move. 01732_ RK-H9J(R) creaks and sparks as it begins to move. 01732_ Sml. Laser destroyed. 01736_ Particle Gun destroyed. 01744_ 8S-YY7(c) destroyed. 01753_ Subatomizers dissect the Tech Extrapolator. 01758_ Dropped Lgt. Treads. 01775_ Wheel destroyed. 01775_ Dropped Ion Engine. 01776_ Dropped Hcp. Matter Pod. 01777_ Dropped Assault Rifle. 01778_ Dropped Imp. Heat Sink. 01779_ Dropped Med. Storage Unit. 01790_ Lgt. Ion Engine destroyed. 01792_ Subatomizers dissect the Lgt. Treads. 01806_ Acquired derelict log, extracted data. Data stored: Storage entrances (x1). 01828_ EXIT=FOUND Map ----- +----------------------------------------------------+ | ?????????????????????????????????????????????????? | | ?????????????????????????????????????????????????? | | ?????????????????????????????????????????????????? | | ?????????????????????????????????????????????????? | | ?????????????????????????????????????????????????? | | ?????????????????????????????????????????????????? | | ?????????????????????????????????????????????????? | | ?????????????????????????????????????????????????? | | ?????????????????????????????????????????????????? | | ?????????????????????????????????????????????????? | | ?????????????????????????????????????????????????? | | ?????????????????????????????????????????????????? | | ?????????????????????????????????????????????????? | | ?????????????????????????????????????????????????? | | ?????????????????????????????????????????????????? | | ???????????????????????????????????##????????????? | | ??????????????????????????????###? """??????????? | | ????????????????????????????? # "??????????? | | ????????????????????????????? #s "??????????? | | ????????????????????????????? s t""#?????????? | | ????????????????????????????#